fUSD/lending_fUSD_20250311
["ID","MTS","AMOUNT","RATE_DAILY","PERIOD"]
[355949418,1741727467389,-500.0,9.81e-05,2]
[355949419,1741727467398,-1454.25,9.81e-05,2]
[355949420,1741727467408,-206.3128,9.81e-05,2]
[355949421,1741727467418,-206.3128,9.81e-05,2]
[355949422,1741727467427,-151.0,9.81e-05,2]
[355949423,1741727467436,-151.0,9.81e-05,2]
[355949424,1741727467449,-500.0,9.81e-05,2]
[355949425,1741727467459,-206.3128,9.81e-05,2]
[355949426,1741727467468,-206.3128,9.81e-05,2]
[355949427,1741727467478,-525.94,9.81e-05,2]
[355949428,1741727467488,-303.28021438,9.81e-05,2]
[355949429,1741727467498,-151.0,9.81e-05,2]
[355949430,1741727467508,-151.0,9.81e-05,2]
[355949431,1741727467517,-151.0,9.81e-05,2]
[355949432,1741727467528,-151.0,9.81e-05,2]
[355949433,1741727467538,-633.42,9.81e-05,2]
[355949434,1741727467547,-277.829174,9.81e-05,2]
[355949435,1741727467556,-277.829174,9.81e-05,2]
[355949436,1741727467567,-277.829174,9.81e-05,2]
[355949437,1741727467576,-500.0,9.81e-05,2]
[355949438,1741727467586,-277.829174,9.81e-05,2]
[355949439,1741727467595,-500.0,9.81e-05,2]
[355949440,1741727467604,-554.78,9.81e-05,2]
[355949441,1741727467617,-500.0,9.81e-05,2]
[355949442,1741727467627,-151.0,9.81e-05,2]
[355949443,1741727467636,-151.0,9.81e-05,2]
[355949444,1741727467645,-500.0,9.81e-05,2]
[355949445,1741727467655,-260.232165,9.81e-05,2]
[355949446,1741727467664,-519.6,9.81e-05,2]
[355949447,1741727467673,-260.232165,9.81e-05,2]
[355949448,1741727467682,-500.0,9.81e-05,2]
[355949449,1741727467691,-833.1,9.81e-05,2]
[355949450,1741727467701,-260.232165,9.81e-05,2]
[355949451,1741727467710,-260.232165,9.81e-05,2]
[355949452,1741727467719,-637.47,9.81e-05,2]
[355949453,1741727467728,-500.0,9.81e-05,2]
[355949454,1741727467737,-500.0,9.81e-05,2]
[355949455,1741727467746,-830.56,9.81e-05,14]
[355949456,1741727467756,-1237.371674,9.81e-05,2]
[355949457,1741727467765,-1237.371674,9.81e-05,2]
[355949458,1741727467774,-1237.371674,9.81e-05,2]
[355949459,1741727467783,-1237.371674,9.81e-05,2]
[355949460,1741727467791,-500.0,9.81e-05,2]
[355949461,1741727467800,-1378.98,9.81e-05,2]
[355949462,1741727467810,-946.27,9.81e-05,2]
[355949463,1741727467821,-500.0,9.81e-05,2]
[355949464,1741727467830,-500.0,9.81e-05,2]
[355949465,1741727467839,-500.0,9.81e-05,2]
[355949466,1741727467847,-956.56,9.81e-05,2]
[355949467,1741727467856,-442.28137324,9.81e-05,2]
[355949468,1741727467866,-500.0,9.81e-05,2]
[355949469,1741727467875,-594.49,9.81e-05,2]
[355949470,1741727467884,-500.0,9.81e-05,2]
[355949471,1741727467894,-679.18,9.81e-05,2]
[355949472,1741727467903,-500.0,9.81e-05,2]
[355949473,1741727467911,-2180.841914,9.81e-05,2]
[355949474,1741727467921,-2180.841914,9.81e-05,2]
[355949475,1741727467930,-1392.64,9.81e-05,2]
[355949476,1741727467940,-151.0,9.81e-05,2]
[355949477,1741727467950,-151.0,9.81e-05,2]
[355949478,1741727467960,-2180.841914,9.81e-05,2]
[355949479,1741727467970,-2180.841914,9.81e-05,2]
[355949480,1741727467980,-859.24,9.81e-05,2]
[355949481,1741727467990,-1432.07,9.81e-05,2]
[355949482,1741727468000,-500.0,9.81e-05,2]
[355949483,1741727468009,-500.0,9.81e-05,2]
[355949484,1741727468019,-714.69,9.81e-05,2]
[355949485,1741727468029,-852.18,9.81e-05,2]
[355949486,1741727468039,-500.0,9.81e-05,2]
[355949487,1741727468048,-1550.52,9.81e-05,2]
[355949488,1741727468058,-303.56343,9.81e-05,2]
[355949489,1741727468072,-303.56343,9.81e-05,2]
[355949490,1741727468081,-663.47,9.81e-05,2]
[355949491,1741727468090,-303.56343,9.81e-05,2]
[355949492,1741727468100,-303.56343,9.81e-05,2]
[355949493,1741727468109,-500.0,9.81e-05,2]
[355949494,1741727468119,-500.0,9.81e-05,2]
[355949495,1741727468128,-868.99,9.81e-05,2]
[355949496,1741727468138,-500.0,9.81e-05,2]
[355949497,1741727468147,-543.557461,9.81e-05,2]
[355949498,1741727468157,-996.34,9.81e-05,2]
[355949499,1741727468166,-543.557461,9.81e-05,2]
[355949500,1741727468176,-543.557461,9.81e-05,2]
[355949501,1741727468185,-730.084523,9.81e-05,2]
[355949502,1741727468197,-543.557461,9.81e-05,2]
[355949503,1741727468206,-730.084523,9.81e-05,2]
[355949504,1741727468215,-1050.94,9.81e-05,2]
[355949505,1741727468225,-725.85,9.81e-05,2]
[355949506,1741727468234,-1456.01,9.81e-05,2]
[355949507,1741727468243,-500.0,9.81e-05,2]
[355949508,1741727468252,-730.084523,9.81e-05,2]
[355949509,1741727468262,-878.47,9.81e-05,2]
[355949510,1741727468271,-730.084523,9.81e-05,2]
[355949511,1741727468280,-500.0,9.81e-05,2]
[355949512,1741727468289,-500.0,9.81e-05,2]
[355949513,1741727468298,-597.11,9.81e-05,2]
[355949514,1741727468308,-500.0,9.81e-05,2]
[355949515,1741727468320,-500.0,9.81e-05,2]
[355949516,1741727468329,-665.09,9.81e-05,2]
[355949517,1741727468339,-500.0,9.81e-05,2]
[355949518,1741727468348,-574.44592,9.81e-05,2]
[355949519,1741727468358,-574.44592,9.81e-05,2]
[355949520,1741727468367,-574.44592,9.81e-05,2]
[355949521,1741727468376,-574.44592,9.81e-05,2]
[355949522,1741727468386,-1318.73,9.81e-05,2]
[355949523,1741727468395,-725.91,9.81e-05,2]
[355949524,1741727468405,-625.78,9.81e-05,2]
[355949525,1741727468414,-500.0,9.81e-05,2]
[355949526,1741727468424,-206.81441,9.81e-05,2]
[355949527,1741727468433,-500.0,9.81e-05,2]
[355949528,1741727468443,-206.81441,9.81e-05,2]
[355949529,1741727468455,-201.89683317,9.81e-05,2]
[355949530,1741727468464,-206.81441,9.81e-05,2]
[355949531,1741727468474,-206.81441,9.81e-05,2]
[355949532,1741727468483,-755.6,9.81e-05,2]
[355949533,1741727468492,-500.0,9.81e-05,2]
[355949534,1741727468502,-500.0,9.81e-05,2]
[355949535,1741727468511,-500.0,9.81e-05,2]
[355949536,1741727468521,-500.0,9.81e-05,2]
[355949537,1741727468531,-500.0,9.81e-05,2]
[355949538,1741727468541,-151.0,9.81e-05,2]
[355949539,1741727468551,-151.0,9.81e-05,2]
[355949540,1741727468560,-500.0,9.81e-05,2]
[355949541,1741727468574,-916.38,9.81e-05,2]
[355949542,1741727468583,-500.0,9.81e-05,2]
[355949543,1741727468594,-318.428282,9.81e-05,2]
[355949544,1741727468604,-318.428282,9.81e-05,2]
[355949545,1741727468614,-318.428282,9.81e-05,2]
[355949546,1741727468624,-318.428282,9.81e-05,2]
[355949547,1741727468634,-500.0,9.81e-05,2]
[355949548,1741727468643,-500.0,9.81e-05,2]
[355949549,1741727468652,-500.0,9.81e-05,2]
[355949550,1741727468662,-500.0,9.81e-05,2]
[355949551,1741727468671,-500.0,9.81e-05,2]
[355949552,1741727468681,-177.186002,9.81e-05,2]
[355949553,1741727468690,-177.186002,9.81e-05,2]
[355949554,1741727468699,-635.54,9.81e-05,2]
[355949555,1741727468708,-500.0,9.81e-05,2]
[355949556,1741727468717,-177.186002,9.81e-05,2]
[355949557,1741727468726,-177.186002,9.81e-05,2]
[355949558,1741727468735,-500.0,9.81e-05,2]
[355949559,1741727468745,-500.0,9.81e-05,2]
[355949560,1741727468754,-500.0,9.81e-05,2]
[355949561,1741727468763,-500.0,9.81e-05,2]
[355949562,1741727468773,-521.4,9.81e-05,2]
[355949563,1741727468782,-487.19829972,9.81e-05,2]
[355949564,1741727468792,-10000.0,9.81e-05,2]
[355949565,1741727468801,-10000.0,9.81e-05,2]
[355949566,1741727468810,-908.46,9.81e-05,2]
[355949567,1741727468823,-10000.0,9.81e-05,2]
[355949568,1741727468833,-10000.0,9.81e-05,2]
[355949569,1741727468842,-634.0,9.81e-05,2]
[355949570,1741727468851,-500.0,9.81e-05,2]
[355949571,1741727468860,-500.0,9.81e-05,2]
[355949572,1741727468870,-1087.21,9.81e-05,2]
[355949573,1741727468879,-500.0,9.81e-05,2]
[355949574,1741727468888,-500.0,9.81e-05,2]
[355949575,1741727468897,-500.0,9.81e-05,2]
[355949576,1741727468906,-545.22,9.81e-05,2]
[355949577,1741727468916,-533.85,9.81e-05,2]
[355949578,1741727468925,-942.77,9.81e-05,2]
[355949579,1741727468934,-500.0,9.81e-05,2]
[355949580,1741727468943,-500.0,9.81e-05,2]
[355949581,1741727468953,-500.0,9.81e-05,2]
[355949582,1741727468963,-151.0,9.81e-05,2]
[355949583,1741727468979,-151.0,9.81e-05,2]
[355949584,1741727468989,-500.0,9.81e-05,2]
[355949585,1741727468998,-562.87178638,9.81e-05,2]
[355949586,1741727469008,-500.0,9.81e-05,2]
[355949587,1741727469019,-961.27,9.81e-05,2]
[355949588,1741727469028,-155.904926,9.81e-05,2]
[355949589,1741727469038,-155.904926,9.81e-05,2]
[355949590,1741727469048,-500.0,9.81e-05,2]
[355949591,1741727469058,-500.0,9.81e-05,2]
[355949592,1741727469069,-155.904926,9.81e-05,2]
[355949593,1741727469078,-155.904926,9.81e-05,2]
[355949594,1741727469088,-500.0,9.81e-05,2]
[355949595,1741727469102,-1326.35,9.81e-05,2]
[355949596,1741727469124,-500.2,9.81e-05,2]
[355949597,1741727469136,-241.997704,9.81e-05,2]
[355949598,1741727469146,-241.997704,9.81e-05,2]
[355949599,1741727469156,-500.0,9.81e-05,2]
[355949600,1741727469166,-241.997704,9.81e-05,2]
[355949601,1741727469175,-241.997704,9.81e-05,2]
[355949602,1741727469184,-1433.35,9.81e-05,2]
[355949603,1741727469194,-558.47,9.81e-05,2]
[355949604,1741727469203,-644.08922697,9.81e-05,2]
[355949605,1741727469213,-500.0,9.81e-05,2]
[355949606,1741727469222,-1257.27,9.81e-05,2]
[355949607,1741727469231,-500.0,9.81e-05,2]
[355949608,1741727469240,-823.125907,9.81e-05,2]
[355949609,1741727469249,-823.125907,9.81e-05,2]
[355949610,1741727469258,-500.0,9.81e-05,2]
[355949611,1741727469267,-500.0,9.81e-05,2]
[355949612,1741727469276,-1275.06,9.81e-05,2]
[355949613,1741727469285,-500.0,9.81e-05,2]
[355949614,1741727469294,-500.0,9.81e-05,2]
[355949615,1741727469303,-1378.8,9.81e-05,2]
[355949616,1741727469314,-500.0,9.81e-05,2]
[355949617,1741727469323,-426.726289,9.81e-05,2]
[355949618,1741727469332,-426.726289,9.81e-05,2]
[355949619,1741727469342,-151.0,9.81e-05,2]
[355949620,1741727469351,-151.0,9.81e-05,2]
[355949621,1741727469360,-190.860421,9.81e-05,2]
[355949622,1741727469369,-426.726289,9.81e-05,2]
[355949623,1741727469379,-426.726289,9.81e-05,2]
[355949624,1741727469388,-500.0,9.81e-05,2]
[355949625,1741727469397,-500.0,9.81e-05,2]
[355949626,1741727469406,-500.0,9.81e-05,2]
[355949627,1741727469415,-1252.37,9.81e-05,2]
[355949628,1741727469425,-1340.78,9.81e-05,2]
[355949629,1741727469434,-500.0,9.81e-05,2]
[355949630,1741727469444,-1578.72,9.81e-05,2]
[355949631,1741727469456,-1222.61,9.81e-05,2]
[355949632,1741727469465,-500.0,9.81e-05,2]
[355949633,1741727469474,-383.422052,9.81e-05,2]
[355949634,1741727469484,-500.0,9.81e-05,2]
[355949635,1741727469494,-383.422052,9.81e-05,2]
[355949636,1741727469503,-383.422052,9.81e-05,2]
[355949637,1741727469512,-383.422052,9.81e-05,2]
[355949638,1741727469521,-1070.52,9.81e-05,2]
[355949639,1741727469531,-151.0,9.81e-05,2]
[355949640,1741727469541,-151.0,9.81e-05,2]
[355949641,1741727469550,-864.67,9.81e-05,2]
[355949642,1741727469560,-1412.91,9.81e-05,2]
[355949643,1741727469570,-247.4217,9.81e-05,2]
[355949644,1741727469579,-247.4217,9.81e-05,2]
[355949645,1741727469588,-2867.572547,9.81e-05,2]
[355949646,1741727469597,-346.752883,9.81e-05,2]
[355949647,1741727469607,-346.752883,9.81e-05,2]
[355949648,1741727469616,-247.4217,9.81e-05,2]
[355949649,1741727469625,-500.0,9.81e-05,2]
[355949650,1741727469634,-247.4217,9.81e-05,2]
[355949651,1741727469644,-2867.572547,9.81e-05,2]
[355949652,1741727469652,-1065.96,9.81e-05,2]
[355949653,1741727469661,-346.752883,9.81e-05,2]
[355949654,1741727469670,-346.752883,9.81e-05,2]
[355949655,1741727469679,-1058.86,9.81e-05,2]
[355949656,1741727469688,-961.98,9.81e-05,2]
[355949657,1741727469697,-151.0,9.81e-05,2]
[355949658,1741727469706,-151.0,9.81e-05,2]
[355949659,1741727469715,-500.0,9.81e-05,2]
[355949660,1741727469724,-191.56516,9.81e-05,2]
[355949661,1741727469734,-191.56516,9.81e-05,2]
[355949662,1741727469743,-500.0,9.81e-05,2]
[355949663,1741727469752,-191.56516,9.81e-05,2]
[355949664,1741727469761,-191.56516,9.81e-05,2]
[355949665,1741727469771,-500.0,9.81e-05,2]
[355949666,1741727469780,-691.01,9.81e-05,2]
[355949667,1741727469789,-1285.18,9.81e-05,2]
[355949668,1741727469798,-151.0,9.81e-05,2]
[355949669,1741727469807,-500.0,9.81e-05,2]
[355949670,1741727469817,-528.26550829,9.81e-05,2]
[355949671,1741727469827,-500.0,9.81e-05,2]
[355949672,1741727469836,-977.91,9.81e-05,2]
[355949673,1741727469845,-500.0,9.81e-05,2]
[355949674,1741727469854,-448.813592,9.81e-05,2]
[355949675,1741727469863,-448.813592,9.81e-05,2]
[355949676,1741727469871,-834.88,9.81e-05,2]
[355949677,1741727469880,-448.813592,9.81e-05,2]
[355949678,1741727469889,-448.813592,9.81e-05,2]
[355949679,1741727469899,-151.0,9.81e-05,2]
[355949680,1741727469907,-151.0,9.81e-05,2]
[355949681,1741727469917,-1347.36,9.81e-05,2]
[355949682,1741727469926,-831.3,9.81e-05,2]
[355949683,1741727469935,-1417.91,9.81e-05,2]
[355949684,1741727469945,-630.73,9.81e-05,2]
[355949685,1741727470138,-205.001513,9.81e-05,2]
[355949686,1741727470148,-205.001513,9.81e-05,2]
[355949687,1741727470158,-205.001513,9.81e-05,2]
[355949688,1741727470168,-205.001513,9.81e-05,2]
[355949689,1741727470177,-500.0,9.81e-05,2]
[355949690,1741727470186,-500.0,9.81e-05,2]
[355949691,1741727470195,-694.82,9.81e-05,2]
[355949692,1741727470205,-1136.83,9.81e-05,2]
[355949693,1741727470214,-894.53,9.81e-05,2]
[355949694,1741727470223,-151.0,9.81e-05,2]
[355949695,1741727470232,-151.0,9.81e-05,2]
[355949696,1741727470241,-500.0,9.81e-05,2]
[355949697,1741727470250,-500.0,9.81e-05,2]
[355949698,1741727470259,-575.79,9.81e-05,2]
[355949699,1741727470269,-677.24,9.81e-05,2]
[355949700,1741727470278,-844.14,9.81e-05,2]
[355949701,1741727470287,-773.39,9.81e-05,2]
[355949702,1741727470296,-1336.51,9.81e-05,2]
[355949703,1741727470305,-500.0,9.81e-05,2]
[355949704,1741727470314,-1182.85,9.81e-05,2]
[355949705,1741727470324,-500.0,9.81e-05,2]
[355949706,1741727470333,-151.0,9.81e-05,2]
[355949707,1741727470343,-151.0,9.81e-05,2]
[355949708,1741727470352,-864.19,9.81e-05,2]
[355949709,1741727470361,-500.0,9.81e-05,2]
[355949710,1741727470370,-500.0,9.81e-05,2]
[355949711,1741727470379,-151.0,9.811e-05,2]
[355949712,1741727470388,-931.52,9.811e-05,2]
[355949713,1741727470397,-211.649997,9.811e-05,2]
[355949714,1741727470407,-4679.14,9.811e-05,2]
[355949715,1741727470416,-211.649997,9.811e-05,2]
[355949716,1741727470424,-849.97,9.811e-05,2]
[355949717,1741727470434,-247.713088,9.811e-05,2]
[355949718,1741727470443,-500.0,9.811e-05,2]
[355949719,1741727470456,-247.713088,9.811e-05,2]
[355949720,1741727470465,-1000.78,9.811e-05,2]
[355949721,1741727470474,-151.0,9.811e-05,2]
[355949722,1741727470484,-500.0,9.811e-05,2]
[355949723,1741727470494,-276.87923,9.811e-05,2]
[355949724,1741727470503,-1215.69,9.811e-05,2]
[355949725,1741727470518,-1315.39,9.811e-05,2]
[355949726,1741727470528,-1054.16,9.811e-05,2]
[355949727,1741727470537,-157.966654,9.811e-05,2]
[355949728,1741727470546,-157.966654,9.811e-05,2]
[355949729,1741727470556,-500.0,9.811e-05,2]
[355949730,1741727470566,-1174.69,9.811e-05,2]
[355949731,1741727470575,-151.0,9.811e-05,2]
[355949732,1741727470584,-151.0,9.811e-05,2]
[355949733,1741727470593,-151.0,9.811e-05,2]
[355949734,1741727470602,-151.0,9.811e-05,2]
[355949735,1741727470611,-151.0,9.811e-05,2]
[355949736,1741727470622,-151.0,9.811e-05,2]
[355949737,1741727470631,-539.96,9.811e-05,2]
[355949738,1741727470641,-566.88,9.811e-05,2]
[355949739,1741727470650,-500.0,9.811e-05,2]
[355949740,1741727470659,-1262.85,9.811e-05,2]
[355949741,1741727470668,-500.0,9.811e-05,2]
[355949742,1741727470677,-500.0,9.811e-05,2]
[355949743,1741727470686,-263.152545,9.811e-05,2]
[355949744,1741727470696,-500.0,9.811e-05,2]
[355949745,1741727470707,-263.152545,9.811e-05,2]
[355949746,1741727470716,-533.46,9.811e-05,2]
[355949747,1741727470727,-151.0,9.811e-05,2]
[355949748,1741727470736,-151.0,9.811e-05,2]
[355949749,1741727470745,-500.0,9.811e-05,2]
[355949750,1741727470754,-546.4,9.811e-05,2]
[355949751,1741727470763,-600.24,9.811e-05,2]
[355949752,1741727470772,-425.722849,9.811e-05,2]
[355949753,1741727470781,-646.04,9.811e-05,2]
[355949754,1741727470790,-425.722849,9.811e-05,2]
[355949755,1741727470799,-211.366234,9.811e-05,2]
[355949756,1741727470808,-211.366234,9.811e-05,2]
[355949757,1741727470819,-500.0,9.811e-05,2]
[355949758,1741727470828,-811.84,9.811e-05,2]
[355949759,1741727470837,-500.0,9.811e-05,2]
[355949760,1741727470846,-206.3128,9.811e-05,2]
[355949761,1741727470855,-206.3128,9.811e-05,2]
[355949762,1741727470864,-500.0,9.811e-05,2]
[355949763,1741727470873,-1614.82,9.811e-05,2]
[355949764,1741727470882,-527.68,9.811e-05,2]
[355949765,1741727470891,-500.0,9.811e-05,2]
[355949766,1741727470900,-500.0,9.811e-05,2]
[355949767,1741727470909,-981.96,9.811e-05,2]
[355949768,1741727470918,-520.48,9.811e-05,2]
[355949769,1741727470927,-500.0,9.811e-05,2]
[355949770,1741727470937,-998.14,9.811e-05,2]
[355949771,1741727470945,-500.0,9.811e-05,2]
[355949772,1741727470955,-1242.47,9.811e-05,2]
[355949773,1741727470964,-500.0,9.811e-05,2]
[355949774,1741727470973,-500.0,9.811e-05,2]
[355949775,1741727470983,-500.0,9.811e-05,2]
[355949776,1741727470992,-874.74,9.811e-05,2]
[355949777,1741727471001,-1183.0,9.811e-05,2]
[355949778,1741727471010,-1360.49,9.811e-05,2]
[355949779,1741727471019,-534.51,9.811e-05,2]
[355949780,1741727471028,-513.66491311,9.811e-05,2]
[355949781,1741727471038,-500.0,9.811e-05,2]
[355949782,1741727471047,-688.05,9.811e-05,2]
[355949783,1741727471055,-1133.14,9.811e-05,2]
[355949784,1741727471064,-567.64,9.811e-05,2]
[355949785,1741727471073,-1318.02,9.811e-05,2]
[355949786,1741727471082,-500.0,9.811e-05,2]
[355949787,1741727471092,-500.0,9.811e-05,2]
[355949788,1741727471101,-682.03,9.811e-05,2]
[355949789,1741727471110,-823.125907,9.811e-05,2]
[355949790,1741727471119,-823.125907,9.811e-05,2]
[355949791,1741727471129,-2867.572547,9.811e-05,2]
[355949792,1741727471138,-2867.572547,9.811e-05,2]
[355949793,1741727471147,-270.154411,9.812e-05,2]
[355949794,1741727471156,-151.0,9.812e-05,2]
[355949795,1741727471165,-211.649997,9.812e-05,2]
[355949796,1741727471175,-211.649997,9.812e-05,2]
[355949797,1741727471184,-247.713088,9.812e-05,2]
[355949798,1741727471194,-247.713088,9.812e-05,2]
[355949799,1741727471204,-151.0,9.812e-05,2]
[355949800,1741727471213,-157.966654,9.812e-05,2]
[355949801,1741727471223,-157.966654,9.812e-05,2]
[355949802,1741727471231,-454.328299,9.812e-05,2]
[355949803,1741727471241,-454.328299,9.812e-05,2]
[355949804,1741727471250,-151.0,9.812e-05,2]
[355949805,1741727471259,-151.0,9.812e-05,2]
[355949806,1741727471269,-151.0,9.812e-05,2]
[355949807,1741727471278,-151.0,9.812e-05,2]
[355949808,1741727471287,-277.829174,9.812e-05,2]
[355949809,1741727471297,-277.829174,9.812e-05,2]
[355949810,1741727471306,-214.304434,9.812e-05,2]
[355949811,1741727471316,-260.232165,9.812e-05,2]
[355949812,1741727471326,-260.232165,9.812e-05,2]
[355949813,1741727471336,-1237.371674,9.812e-05,2]
[355949814,1741727471346,-1237.371674,9.812e-05,2]
[355949815,1741727471356,-2180.841914,9.812e-05,2]
[355949816,1741727471366,-160.265915,9.812e-05,2]
[355949817,1741727471376,-2180.841914,9.812e-05,2]
[355949818,1741727471386,-303.56343,9.812e-05,2]
[355949819,1741727471395,-303.56343,9.812e-05,2]
[355949820,1741727471405,-543.557461,9.812e-05,2]
[355949821,1741727471415,-543.557461,9.812e-05,2]
[355949822,1741727471426,-730.084523,9.812e-05,2]
[355949823,1741727471435,-730.084523,9.812e-05,2]
[355949824,1741727471447,-574.44592,9.812e-05,2]
[355949825,1741727471457,-574.44592,9.812e-05,2]
[355949826,1741727471466,-206.81441,9.812e-05,2]
[355949827,1741727471476,-206.81441,9.812e-05,2]
[355949828,1741727471487,-318.428282,9.812e-05,2]
[355949829,1741727471496,-318.428282,9.812e-05,2]
[355949830,1741727471505,-10000.0,9.812e-05,2]
[355949831,1741727471516,-10000.0,9.812e-05,2]
[355949832,1741727471525,-286.472068,9.812e-05,2]
[355949833,1741727471539,-426.726289,9.812e-05,2]
[355949834,1741727471548,-151.0,9.812e-05,2]
[355949835,1741727471558,-426.726289,9.812e-05,2]
[355949836,1741727471569,-383.422052,9.812e-05,2]
[355949837,1741727471578,-383.422052,9.812e-05,2]
[355949838,1741727471588,-346.752883,9.812e-05,2]
[355949839,1741727471597,-346.752883,9.812e-05,2]
[355949840,1741727471607,-550.0,9.821e-05,2]
[355949841,1741727471616,-151.0,9.863e-05,2]
[355949842,1741727471625,-448.813592,9.863e-05,2]
[355949843,1741727471635,-448.813592,9.863e-05,2]
[355949844,1741727471644,-165.530293,9.863e-05,2]
[355949845,1741727471653,-205.001513,9.863e-05,2]
[355949846,1741727471663,-205.001513,9.863e-05,2]
[355949847,1741727471672,-151.0,9.863e-05,2]
[355949848,1741727471682,-151.0,9.863e-05,2]
[355949849,1741727471691,-1000.0,9.863e-05,2]
[355949850,1741727471700,-1000.0,9.863e-05,2]
[355949851,1741727471709,-1000.0,9.863e-05,2]
[355949852,1741727471719,-1000.0,9.863e-05,2]
[355949853,1741727471728,-550.0,9.885e-05,2]
[355949854,1741727471738,-150.0,9.885e-05,2]
[355949855,1741727471747,-191.56516,9.885e-05,2]
[355949856,1741727471756,-191.56516,9.885e-05,2]
[355949857,1741727471765,-255.0,9.885e-05,2]
[355949858,1741727471774,-550.0,9.886e-05,2]
[355949859,1741727471784,-154050.1616136,9.9e-05,2]
[355949860,1741727471793,-3675.16,9.9e-05,2]
[355949861,1741727471803,-202.0,9.9e-05,2]
[355949862,1741727471812,-202.0,9.9e-05,2]
[355949863,1741727471821,-202.0,9.9e-05,2]
[355949864,1741727471831,-202.0,9.9e-05,2]
[355949865,1741727471840,-202.0,9.9e-05,2]
[355949866,1741727471849,-202.0,9.9e-05,2]
[355949867,1741727471859,-151.0,9.9e-05,2]
[355949868,1741727471870,-211.649997,9.9e-05,2]
[355949869,1741727471879,-211.649997,9.9e-05,2]
[355949870,1741727471888,-247.713088,9.9e-05,2]
[355949871,1741727471897,-247.713088,9.9e-05,2]
[355949872,1741727471907,-151.0,9.9e-05,2]
[355949873,1741727471916,-157.966654,9.9e-05,2]
[355949874,1741727471926,-157.966654,9.9e-05,2]
[355949875,1741727471935,-151.0,9.9e-05,2]
[355949876,1741727471944,-151.0,9.9e-05,2]
[355949877,1741727471953,-151.0,9.9e-05,2]
[355949878,1741727471962,-263.152545,9.9e-05,2]
[355949879,1741727471971,-263.152545,9.9e-05,2]
[355949880,1741727471980,-151.0,9.9e-05,2]
[355949881,1741727471989,-151.0,9.9e-05,2]
[355949882,1741727471998,-425.722849,9.9e-05,2]
[355949883,1741727472008,-425.722849,9.9e-05,2]
[355949884,1741727472017,-211.366234,9.9e-05,2]
[355949885,1741727472026,-211.366234,9.9e-05,2]
[355949886,1741727472035,-454.328299,9.9e-05,2]
[355949887,1741727472044,-454.328299,9.9e-05,2]
[355949888,1741727472053,-151.0,9.9e-05,2]
[355949889,1741727472062,-206.3128,9.9e-05,2]
[355949890,1741727472073,-151.0,9.9e-05,2]
[355949891,1741727472082,-206.3128,9.9e-05,2]
[355949892,1741727472092,-151.0,9.9e-05,2]
[355949893,1741727472102,-151.0,9.9e-05,2]
[355949894,1741727472113,-277.829174,9.9e-05,2]
[355949895,1741727472127,-277.829174,9.9e-05,2]
[355949896,1741727472137,-260.232165,9.9e-05,2]
[355949897,1741727472146,-260.232165,9.9e-05,2]
[355949898,1741727472155,-1237.371674,9.9e-05,2]
[355949899,1741727472165,-1237.371674,9.9e-05,2]
[355949900,1741727472174,-2180.841914,9.9e-05,2]
[355949901,1741727472184,-2180.841914,9.9e-05,2]
[355949902,1741727472193,-303.56343,9.9e-05,2]
[355949903,1741727472203,-303.56343,9.9e-05,2]
[355949904,1741727472212,-543.557461,9.9e-05,2]
[355949905,1741727472228,-543.557461,9.9e-05,2]
[355949906,1741727472245,-730.084523,9.9e-05,2]
[355949907,1741727472254,-730.084523,9.9e-05,2]
[355949908,1741727472263,-574.44592,9.9e-05,2]
[355949909,1741727472273,-574.44592,9.9e-05,2]
[355949910,1741727472282,-206.81441,9.9e-05,2]
[355949911,1741727472291,-206.81441,9.9e-05,2]
[355949912,1741727472300,-318.428282,9.9e-05,2]
[355949913,1741727472310,-318.428282,9.9e-05,2]
[355949914,1741727472320,-177.186002,9.9e-05,2]
[355949915,1741727472330,-177.186002,9.9e-05,2]
[355949916,1741727472339,-10000.0,9.9e-05,2]
[355949917,1741727472347,-10000.0,9.9e-05,2]